Cogmind - Beta 11.1 @@@ ROGUE MODE // 2022.04.29 @ 10:57:02 Player: ktur Result: Destroyed by Enhanced Grunt with Neutron Cannon Performance ------------- Evolutions (3) 1500 Regions Visited (11) 2200 Robots Destroyed (104) 520 Value Destroyed (3000) 3000 Prototype IDs (21) 420 Alien Tech Used (0) 0 Bonus (412) 412 TOTAL SCORE: 8052 Bonus ------- Follower Combat Kills 112 Met Data Miner 300 Cogmind --------- Core Integrity 0/700 Matter 290/300 Energy 100/100 System Corruption 13% Temperature Cool (1) Movement Hovering (110) Ox1 Location -7/Data Miner Parts ------- > --- POWER (1) -------- (None) > --- PROPULSION (4) --- Gravmag Array > --- UTILITY (6) ------ Large Storage Unit Improved Signal Interpreter Improved Utility Shielding Hacking Suite Hacking Suite > --- WEAPON (2) ------- (None) > --- INVENTORY (15) --- Light Nuclear Core Improved Sensor Array System Mapper Deep Network Scanner Authchip [Propulsion] Authchip [Propulsion] Authchip [Device] Authchip [Device] Authchip [Device] Authchip [Storage] Authchip [Processor] Authchip [Processor] Authchip [Processor] Authchip [Armor] Heavy Rocket Launcher Peak State ------------ > --- POWER ------------ Micro Nuclear Core > --- PROPULSION ------- Improved Hover Unit Improved Hover Unit Gravmag System Improved Airjet > --- UTILITY ---------- Experimental Cooling System Large Storage Unit Improved Signal Interpreter Hacking Suite Hacking Suite Hacking Suite > --- WEAPON ----------- Greatsword > --- INVENTORY -------- Light Nuclear Core High-capacity Storage Unit Improved Sensor Array Advanced Transmission Jammer Advanced ECM Suite Improved Utility Shielding Improved System Shield Authchip [Propulsion] Authchip [Propulsion] Authchip [Device] Authchip [Device] Authchip [Processor] Authchip [Processor] Authchip [Processor] Rocket Launcher [Rating: 51] Favorites ----------- Power Light Ion Engine Engine Light Ion Engine Power Core Light Nuclear Core Propulsion Light Treads Treads Light Treads Hover Unit Gravmag System Utility Hacking Suite Device Improved Sensor Array Storage Large Storage Unit Processor Targeting Computer Hackware Hacking Suite Protection Light Armor Plating Weapon Heavy Assault Rifle Energy Gun Backup Laser I Ballistic Gun Heavy Assault Rifle Launcher Rocket Launcher Special Weapon Remote Datajack Slashing Weapon Greatsword Build | -11 -10 -10 -9 -9 -8 -7 -7 -7 -7 -7 -7 ------- Run | Scr Mat Min Mat Min Mat Fac Was Fac Low Low Dat Slots Evolved 6 | . . . 2 . 2 2 . . . . . Power . | . . . . . . . . . . . . Propulsion 2 | . . . 1 . . 1 . . . . . Utility 4 | . . . 1 . 2 1 . . . . . Weapon . | . . . . . . . . . . . . Parts Attached 130 | 6 5 5 16 2 25 46 2 15 2 2 4 Power 11 | 1 1 1 2 . 3 2 . 1 . . . Engine 8 | 1 1 1 2 . 3 . . . . . . Core 3 | . . . . . . 2 . 1 . . . Reactor . | . . . . . . . . . . . . Propulsion 47 | 2 . 1 6 2 9 21 . 5 . . 1 Treads 19 | 2 . 1 6 2 8 . . . . . . Leg . | . . . . . . . . . . . . Wheel . | . . . . . . . . . . . . Hover 28 | . . . . . 1 21 . 5 . . 1 Flight . | . . . . . . . . . . . . Utility 45 | 1 3 1 5 . 6 15 . 7 2 2 3 Device 20 | . . . . . 2 8 . 6 2 1 1 Storage 5 | 1 1 . 1 . 1 1 . . . . . Processor 7 | . 1 . 1 . 1 2 . . . 1 1 Hackware 4 | . . . . . . 3 . 1 . . . Protection 9 | . 1 1 3 . 2 1 . . . . 1 Artifact . | . . . . . . . . . . . . Weapon 27 | 2 1 2 3 . 7 8 2 2 . . . Energy Gun . | . . . . . . . . . . . . Energy Cannon . | . . . . . . . . . . . . Ballistic Gun 13 | 2 1 2 3 . 5 . . . . . . Ballistic Cannon . | . . . . . . . . . . . . Launcher 4 | . . . . . 2 1 . 1 . . . Special Weapon 1 | . . . . . . 1 . . . . . Impact Weapon . | . . . . . . . . . . . . Slashing Weapon 9 | . . . . . . 6 2 1 . . . Piercing Weapon . | . . . . . . . . . . . . Special Melee Weapon . | . . . . . . . . . . . . Unidentified Prototypes 3 | . . . . . 1 . 1 1 . . . Corrupted Parts 1 | . . . . . . . . 1 . . . System Corruption 3 | . . . . . . . . 3 . . . Parts Lost 24 | . . 2 2 . 7 6 . . . . 7 Power 3 | . . 1 . . 1 . . . . . 1 Propulsion 15 | . . 1 2 . 2 6 . . . . 4 Utility 4 | . . . . . 3 . . . . . 1 Weapon 2 | . . . . . 1 . . . . . 1 Highest Loss Streak 7 | . . 2 2 . 2 2 . . . . 7 To Critical Strikes . | . . . . . . . . . . . . Average Slot Usage (%) 95 | . 99 99 99 100 92 90 92 92 92 92 81 Engine 8 | . 14 13 11 11 8 . . . . . . Core 2 | . . . . . . 6 7 7 7 7 5 Treads 20 | . 28 27 32 33 25 . . . . . . Hover 8 | . . . . . . 29 30 30 30 30 24 Device 3 | . . . . . 6 6 7 7 7 7 3 Storage 11 | . 15 14 11 11 14 7 7 7 7 7 7 Processor 7 | . 2 . 11 11 13 6 7 7 7 7 8 Hackware 6 | . . . . . . 22 23 23 23 23 20 Protection 6 | . 10 14 10 11 4 . . . . . 2 Ballistic Gun 16 | . 28 28 21 22 16 . . . . . . Slashing Weapon 1 | . . . . . . 6 7 6 7 7 5 Naked Turns . | . . . . . . . . . . . . Heaviest Build 72 | 11 31 32 57 57 72 34 32 32 32 31 32 Greatest Support 63 | 40 40 40 60 63 63 36 32 35 35 35 35 Greatest Overweight (x) 2 | . . 1 1 . 1 2 . . . . 1 Average Overweight (x) . | . . . . . . . . . . . . Largest Inventory Capacity 20 | 8 15 15 20 20 20 20 15 15 15 15 15 Average Capacity 16 | 7 14 15 18 20 20 15 15 15 15 15 15 Most Carried 20 | 6 15 15 20 20 20 20 15 15 15 15 15 Average Carried 16 | 3 14 14 17 19 19 14 14 14 14 15 14 Final Capacity 20 | 8 15 15 20 20 20 15 15 15 15 15 15 Final Carried 20 | 6 15 15 20 20 20 15 15 15 15 15 15 Class Distribution -------------------- 42% | Mutant 40% | Scavenger-Mutant 17% | Hacker-Mutant Dominant Class ---------------- Mutant | -10/Materials Mutant | -10/Mines Scavenger-Mutant | -9/Materials Scavenger-Mutant | -9/Mines Mutant | -8/Materials Scavenger-Mutant | -7/Factory Scavenger-Mutant | -7/Waste Hacker-Mutant | -7/Factory Hacker-Mutant | -7/Lower Caves Hacker-Mutant | -7/Lower Caves Hacker-Mutant | -7/Data Miner Resources | -11 -10 -10 -9 -9 -8 -7 -7 -7 -7 -7 -7 ----------- Run | Scr Mat Min Mat Min Mat Fac Was Fac Low Low Dat Matter Collected 3213 | 164 630 96 490 107 927 417 59 195 76 52 . Remotely . | . . . . . . . . . . . . Salvage Created 3675 | . 687 204 670 162 1284 556 . 48 39 . 25 Parts 213 | . 45 15 38 8 63 36 . 3 2 . 3 Haulers Intercepted 5 | . 2 . 2 . 1 . . . . . . Recyclers Shooed 5 | . 1 . 1 . 1 2 . . . . . Parts Field Recycled . | . . . . . . . . . . . . Retrieved Matter . | . . . . . . . . . . . . Parts Self-Destructed 8 | . . . . . . . . . 1 7 . Prevented . | . . . . . . . . . . . . Kills | -11 -10 -10 -9 -9 -8 -7 -7 -7 -7 -7 -7 ------- Run | Scr Mat Min Mat Min Mat Fac Was Fac Low Low Dat Combat Hostiles Destroyed 73 | . 14 4 13 4 29 6 . 3 . . . Melee 6 | . . . . . . 6 . . . . . Guns 57 | . 14 4 13 4 22 . . . . . . AOE 10 | . . . . . 7 . . 3 . . . Classes Destroyed 14 | . 7 1 1 . 2 2 . . 1 . . Worker 5 | . . . . . 1 2 . 2 . . . Builder 1 | . 1 . . . . . . . . . . Tunneler 1 | . . . . . . 1 . . . . . Hauler 5 | . 2 . 2 . 1 . . . . . . Recycler 5 | . 2 . 1 . . 2 . . . . . Minesweeper 1 | . . . . . . . . . 1 . . Operator 5 | . 3 . . . 2 . . . . . . Watcher 7 | . 1 . . . 3 3 . . . . . Swarmer 20 | . 9 . 3 . 5 . . 3 . . . Grunt 34 | . 5 2 5 4 17 1 . . . . . Brawler 1 | . . . . . 1 . . . . . . Duelist 2 | . . . 1 . 1 . . . . . . Sentry 11 | . . 2 4 . 5 . . . . . . Programmer 5 | . . . . . . 5 . . . . . Best Kill Streak 6 | . 3 2 3 3 6 3 . 4 1 . 1 Combat Bots Only 6 | . 3 2 3 3 6 1 . 3 . . . Max Kills in Single Turn 2 | . 2 2 1 1 2 1 . 1 1 . 1 Gunslinging 1 | . 1 . . . . . . . . . . Exploded 2 | . . . . . 2 . . 1 . . . Melee 1 | . . . . . . 1 . . . . . Uniques/NPCs Destroyed 1 | . . . . . . . . . . . 1 Data Miner (-7/Data Miner) Combat | -11 -10 -10 -9 -9 -8 -7 -7 -7 -7 -7 -7 -------- Run | Scr Mat Min Mat Min Mat Fac Was Fac Low Low Dat Damage Taken 5885 | . 412 211 948 143 2292 690 . 181 . . 1008 Core 1185 | . 92 15 132 21 183 143 . 33 . . 566 Absorbed by Shields . | . . . . . . . . . . . . Redirected to Shielding 62 | . 15 16 . . . . . . . . 31 Regen/Repaired (Parts) 234 | . . . 98 . . 132 . 4 . . . Core Remaining (%) 71 | 100 . 57 . 61 66 . . . . . . Volleys Fired 269 | . 75 14 58 15 99 4 . 4 . . . Largest 2 | . 2 2 2 2 2 2 . 1 . . . Hottest 60 | . 40 40 46 46 48 60 . 39 . . . Shots Fired 520 | . 150 28 116 30 186 6 . 4 . . . Gun 505 | . 150 28 116 30 177 4 . . . . . Cannon . | . . . . . . . . . . . . Launcher 14 | . . . . . 9 1 . 4 . . . Special 1 | . . . . . . 1 . . . . . Kinetic 501 | . 150 28 116 30 177 . . . . . . Thermal 4 | . . . . . . 4 . . . . . Explosive 14 | . . . . . 9 1 . 4 . . . Electromagnetic . | . . . . . . . . . . . . Robot Hit Streak 27 | . 10 14 23 9 27 10 . 1 . . . Robot Miss Streak 4 | . 3 3 3 1 4 1 . 1 . . . Penetration Max . | . . . . . . . . . . . . Secondary Targets 5 | . 1 1 . . 3 . . . . . . Max Gunslinging Chain 1 | . 1 1 . . 1 . . . . . . Shots Hit Robots 394 | . 93 20 86 23 133 33 . 4 1 . 1 Core Hits 168 | . 41 9 26 7 67 13 . 5 . . . Critical Kills . | . . . . . . . . . . . . Critical Parts Destroyed 4 | . 1 . 1 . 2 . . . . . . Critical Strikes 4 | . 1 . 1 . 2 . . . . . . Destroy 4 | . 1 . 1 . 2 . . . . . . Melee Attacks 119 | . . . . . . 86 . 22 1 9 1 Impact . | . . . . . . . . . . . . Slashing 119 | . . . . . . 86 . 22 1 9 1 Piercing . | . . . . . . . . . . . . Sneak Attacks 10 | . . . . . . 7 . 1 1 . 1 Combat Hostiles 1 | . . . . . . 1 . . . . . Follow-up Attacks . | . . . . . . . . . . . . Damage Inflicted 8446 | . 1011 235 1385 368 3131 1587 . 539 95 . 95 Guns 5076 | . 985 210 1364 337 2153 27 . . . . . Cannons . | . . . . . . . . . . . . Explosions 1326 | . . . . . 975 48 . 303 . . . Melee 1938 | . . . . . . 1512 . 236 95 . 95 Ramming 106 | . 26 25 21 31 3 . . . . . . Kinetic 5049 | . 985 210 1364 337 2153 . . . . . . Thermal 27 | . . . . . . 27 . . . . . Explosive 1326 | . . . . . 975 48 . 303 . . . Electromagnetic . | . . . . . . . . . . . . Impact . | . . . . . . . . . . . . Slashing 1938 | . . . . . . 1512 . 236 95 . 95 Piercing . | . . . . . . . . . . . . Highest Corruption 13 | . . . . . 1 1 10 13 13 13 13 Average Corruption 5 | . . . . . 1 1 8 11 13 13 13 Corruption Purged . | . . . . . . . . . . . . Corruption Blocked . | . . . . . . . . . . . . Effects 71 | . . . . . 3 10 2 27 8 14 7 Message Errors 26 | . . . . . . 3 1 10 4 7 1 Matter Fused 11 | . . . . . . . 1 4 2 3 1 Heat Flow Errors 3 | . . . . . . . . 2 . . 1 Energy Discharges 10 | . . . . . 1 4 . 2 1 2 . Parts Rejected 3 | . . . . . . 1 . 2 . . . Data Loss (minor) 10 | . . . . . 1 1 . 5 1 2 . Data Loss (major) 5 | . . . . . 1 1 . 2 . . 1 Misdirections 3 | . . . . . . . . . . . 3 Overload Shots . | . . . . . . . . . . . . Overflow Damage 576 | . . . . . 29 288 . 169 55 . 35 Projectiles . | . . . . . . . . . . . . Explosions 100 | . . . . . 29 13 . 58 . . . Melee 476 | . . . . . . 275 . 111 55 . 35 Knockbacks 3 | . 1 . 1 1 . . . . . . . Impact 3 | . 1 . 1 1 . . . . . . . Kinetic . | . . . . . . . . . . . . Secondary . | . . . . . . . . . . . . Self-Inflicted Damage 155 | . . . . . 103 . . 52 . . . Shots 4 | . . . . . 3 . . 1 . . . Rammed 17 | . 5 4 3 4 1 . . . . . . Targets Rammed 18 | . 5 4 4 4 1 . . . . . . Kicked . | . . . . . . . . . . . . Crushed 1 | . . . 1 . . . . . . . . Highest Temperature 204 | . 6 27 23 6 138 8 . 204 . . 120 Average Temperature 23 | . 6 12 7 2 23 8 . 92 . . 72 Received Heat Transfer 1704 | . 84 81 297 84 1035 114 . 9 . . . Siege Activations . | . . . . . . . . . . . . Robots Corrupted . | . . . . . . . . . . . . Combat Hostiles . | . . . . . . . . . . . . Parts Fried . | . . . . . . . . . . . . Impact Corruptions . | . . . . . . . . . . . . Robots Melted . | . . . . . . . . . . . . Combat Hostiles . | . . . . . . . . . . . . Parts Melted . | . . . . . . . . . . . . Heat Transferred 111 | . . . . . . 111 . . . . . Parts Sabotaged . | . . . . . . . . . . . . Parts Stolen . | . . . . . . . . . . . . Parts Stripped . | . . . . . . . . . . . . Power Chain Reactions . | . . . . . . . . . . . . Missiles Intercepted . | . . . . . . . . . . . . Alert | -11 -10 -10 -9 -9 -8 -7 -7 -7 -7 -7 -7 ------- Run | Scr Mat Min Mat Min Mat Fac Was Fac Low Low Dat Peak Influence 327 | . 209 69 178 154 327 277 60 218 . . . Initial 82 | . . 19 . 52 1 82 45 42 . . . Average 98 | . 61 12 61 65 194 166 49 30 . . . Maximum Alert Level 1 | . 1 . . . 1 1 . 1 . . . Low Security (%) 81 | 100 94 100 100 100 48 65 100 97 . . . Level 1 18 | . 5 . . . 51 34 . 2 . . . Level 2 . | . . . . . . . . . . . . Level 3 . | . . . . . . . . . . . . Level 4 . | . . . . . . . . . . . . Level 5 . | . . . . . . . . . . . . High Security . | . . . . . . . . . . . . Max Security . | . . . . . . . . . . . . Squads Dispatched 33 | . 4 1 . . 8 12 . 8 . . . Investigation 16 | . 1 1 . . 1 6 . 7 . . . Extermination 4 | . . . . . . 4 . . . . . Reinforcement 9 | . 3 . . . 3 2 . 1 . . . Assault . | . . . . . . . . . . . . Garrison 4 | . . . . . 4 . . . . . . Intercept . | . . . . . . . . . . . . Searches Triggered . | . . . . . . . . . . . . Construction Impeded 1 | . . . . . 1 . . . . . . Haulers Reinforced . | . . . . . . . . . . . . Active Scanning Responses . | . . . . . . . . . . . . Cargo Convoy Interrupts . | . . . . . . . . . . . . Stealth | -11 -10 -10 -9 -9 -8 -7 -7 -7 -7 -7 -7 --------- Run | Scr Mat Min Mat Min Mat Fac Was Fac Low Low Dat Distress Signals 4 | . 1 . 1 . 1 . . 1 . . . Communications Jammed . | . . . . . . . . . . . . Distress Signals . | . . . . . . . . . . . . Times Spotted 163 | . 31 4 21 7 46 29 6 15 . . 4 Peak Tracking Total 9 | . 4 2 4 3 9 7 6 7 . . 4 Tactical Retreats 19 | . 3 . 2 . 1 11 . 2 . . . Traps | -11 -10 -10 -9 -9 -8 -7 -7 -7 -7 -7 -7 ------- Run | Scr Mat Min Mat Min Mat Fac Was Fac Low Low Dat Traps Triggered 4 | . . . 1 . 1 1 . 1 . . . Indirectly . | . . . . . . . . . . . . Trap Hack Attempts . | . . . . . . . . . . . . Triggered . | . . . . . . . . . . . . Disarmed . | . . . . . . . . . . . . Reprogrammed . | . . . . . . . . . . . . Reused 1 | . . . . . . . . . . . 1 Traps Extracted . | . . . . . . . . . . . . Installed 4 | . . . . . . . . . . . 4 Triggered 2 | . . . . . . . . . . 2 . Most Traps Carried 4 | . . . . . . . . . 4 4 4 Machines | -11 -10 -10 -9 -9 -8 -7 -7 -7 -7 -7 -7 ---------- Run | Scr Mat Min Mat Min Mat Fac Was Fac Low Low Dat Machines Disabled 9 | . . . . . 4 1 . 4 . . . Max in Single Turn 2 | . . . . . 2 1 . 2 . . . Garrison Access 2 | . . . . . . . . 2 . . . Machines Sabotaged . | . . . . . . . . . . . . Garrisons Compromised . | . . . . . . . . . . . . Overloaded Fab Kills . | . . . . . . . . . . . . Hacking | -11 -10 -10 -9 -9 -8 -7 -7 -7 -7 -7 -7 --------- Run | Scr Mat Min Mat Min Mat Fac Was Fac Low Low Dat Machines Accessed 63 | . 7 1 6 . 11 19 . 15 . . 4 Terminals 27 | . 4 . 3 . 8 7 . 5 . . . Fabricators 10 | . . . . . . 6 . 4 . . . Repair Stations 6 | . 1 . 1 . . 3 . 1 . . . Recycling Units 8 | . 2 . 2 . 1 2 . 1 . . . Scanalyzers 4 | . . . . . 1 1 . 2 . . . Garrison Access 3 | . . . . . 1 . . 2 . . . Total Hacks 183 | . 21 1 17 . 27 44 . 44 . . 29 Successful 134 | . 9 1 12 . 11 36 . 36 . . 29 Failed 49 | . 12 . 5 . 16 8 . 8 . . . Catastrophic 1 | . . . . . . 1 . . . . . Database Lockouts . | . . . . . . . . . . . . Manual 82 | . 7 . 10 . 16 23 . 26 . . . Terminals 81 | . 13 . 12 . 20 15 . 21 . . . Fabricators 25 | . . . . . . 15 . 10 . . . Repair Stations 13 | . 2 . 2 . . 7 . 2 . . . Recycling Units 18 | . 6 . 3 . 2 4 . 3 . . . Scanalyzers 11 | . . . . . 2 3 . 6 . . . Garrison Access 5 | . . . . . 3 . . 2 . . . Terminal Hacks 63 | . 5 1 6 . 7 5 . 10 . . 29 Record 11 | . . . . . . . . . . . 11 Part Schematic 14 | . 1 . . . . 1 . 2 . . 10 Robot Schematic 5 | . . . . . . . . . . . 5 Robot Analysis 3 | . 1 . 1 . 1 . . . . . . Prototype ID Bank 8 | . 1 . 3 . 1 . . . . . 3 Open Door 1 | . . 1 . . . . . . . . . Branch Access Points 1 | . . . . . . . . 1 . . . Terminal Index 2 | . . . . . . 1 . 1 . . . Scanalyzer Index 1 | . . . . . . . . 1 . . . Alert Level 3 | . . . . . 2 . . 1 . . . Unreport Threat 7 | . . . 1 . 1 2 . 3 . . . Locate Traps 3 | . 2 . . . . . . 1 . . . Hauler Manifests 3 | . . . 1 . 2 . . . . . . Zone Layout 1 | . . . . . . 1 . . . . . Fabricator Hacks 13 | . . . . . . 7 . 6 . . . Network Status 2 | . . . . . . 1 . 1 . . . Load Schematic 9 | . . . . . . 5 . 4 . . . Build 2 | . . . . . . 1 . 1 . . . Repair Station Hacks 11 | . . . 2 . . 7 . 2 . . . Scan Component 6 | . . . 1 . . 4 . 1 . . . Repair 4 | . . . 1 . . 2 . 1 . . . Refit 1 | . . . . . . 1 . . . . . Recycling Unit Hacks 10 | . 3 . 2 . 1 3 . 1 . . . Retrieve Components 10 | . 3 . 2 . 1 3 . 1 . . . Scanalyzer 8 | . . . . . 2 2 . 4 . . . Insert Component 4 | . . . . . 1 1 . 2 . . . Analyze 4 | . . . . . 1 1 . 2 . . . Garrison Access Hacks 2 | . . . . . . . . 2 . . . Seal Access 2 | . . . . . . . . 2 . . . Unauthorized Hacks 27 | . 1 . 2 . 1 12 . 11 . . . Terminals 14 | . 1 . 2 . 1 5 . 5 . . . Track 1 | . . . . . . . . 1 . . . Assimilate 3 | . . . . . . 1 . 2 . . . Botnet 5 | . . . 1 . . 2 . 2 . . . Disrupt 2 | . . . . . . 2 . . . . . Operators 3 | . 1 . 1 . 1 . . . . . . Fabricators 11 | . . . . . . 7 . 4 . . . Prioritize 1 | . . . . . . 1 . . . . . Recompile 10 | . . . . . . 6 . 4 . . . Repair Stations . | . . . . . . . . . . . . Recycling Units 2 | . . . . . . . . 2 . . . Reject 1 | . . . . . . . . 1 . . . Mask 1 | . . . . . . . . 1 . . . Scanalyzers . | . . . . . . . . . . . . Garrison Access . | . . . . . . . . . . . . Data Cores Recovered . | . . . . . . . . . . . . Used . | . . . . . . . . . . . . Hacking Detections 45 | . 6 . 4 . 11 15 . 9 . . . Full Trace Events 5 | . 1 . . . 1 . . 3 . . . Feedback Events . | . . . . . . . . . . . . Feedback Blocked . | . . . . . . . . . . . . Robot Schematics Acquired 5 | . . . . . . . . . . . 5 Robots Built . | . . . . . . . . . . . . Authchips . | . . . . . . . . . . . . Time . | . . . . . . . . . . . . Total Robot Build Rating . | . . . . . . . . . . . . Part Schematics Acquired 17 | . 1 . . . 1 2 . 3 . . 10 Parts Built 2 | . . . . . . 1 . 1 . . . Authchips 1 | . . . . . . . . 1 . . . Time 96 | . . . . . . 58 . 38 . . . Total Part Build Rating 10 | . . . . . . 7 . 3 . . . Parts Repaired 4 | . . . 1 . . 2 . 1 . . . Time 90 | . . . 16 . . 39 . 35 . . . Parts Recycled . | . . . . . . . . . . . . Recycled Matter . | . . . . . . . . . . . . Retrieved Matter . | . . . . . . . . . . . . Retrieved Components 34 | . 10 . 12 . 9 1 . 2 . . . Parts Scanalyzed 3 | . . . . . 1 1 . 1 . . . Part Schematics Acquired 3 | . . . . . 1 1 . 1 . . . Parts Damaged 2 | . . . . . 1 . . 1 . . . Bothacking | -11 -10 -10 -9 -9 -8 -7 -7 -7 -7 -7 -7 ------------ Run | Scr Mat Min Mat Min Mat Fac Was Fac Low Low Dat Used RIF Installer . | . . . . . . . . . . . . Robots Hacked 1 | . . . . . . 1 . . . . . Non-combat 1 | . . . . . . 1 . . . . . Combat . | . . . . . . . . . . . . Robot Hacks Applied 1 | . . . . . . 1 . . . . . find_chute 1 | . . . . . . 1 . . . . . Relay Couplers Released . | . . . . . . . . . . . . Fabnet Peak Effective % . | . . . . . . . . . . . . Robots Rewired . | . . . . . . . . . . . . Allies Hacked . | . . . . . . . . . . . . Hacks Repelled . | . . . . . . . . . . . . Allies | -11 -10 -10 -9 -9 -8 -7 -7 -7 -7 -7 -7 -------- Run | Scr Mat Min Mat Min Mat Fac Was Fac Low Low Dat Total Allies 7 | . . 2 . 3 . . . 2 . . . Largest Group 3 | . . 2 2 3 3 . . 2 . . . Highest-Rated Group 40 | . . 39 39 40 40 . . 36 . . . Highest-Rated Ally 31 | . . 31 31 16 16 . . 26 . . . Total Orders . | . . . . . . . . . . . . Ally Attacks 28 | . . . 2 20 6 . . . . . . Total Damage 362 | . . . 44 257 61 . . . . . . Kills 4 | . . . . 4 . . . . . . . Allies Corrupted . | . . . . . . . . . . . . Allies Melted . | . . . . . . . . . . . . Intel | -11 -10 -10 -9 -9 -8 -7 -7 -7 -7 -7 -7 ------- Run | Scr Mat Min Mat Min Mat Fac Was Fac Low Low Dat Robot Analysis Total 3 | . 1 . 1 . 1 . . . . . . Derelict Logs Recovered 4 | . . 2 . 1 . . . . 1 . . Drone Launches . | . . . . . . . . . . . . Drone Recoveries . | . . . . . . . . . . . . Exploration | -11 -10 -10 -9 -9 -8 -7 -7 -7 -7 -7 -7 ------------- Run | Scr Mat Min Mat Min Mat Fac Was Fac Low Low Dat Turns Passed 10619 | 93 1870 1196 1042 1124 2127 1718 70 814 187 279 99 Spaces Moved 8677 | 52 1001 706 468 657 900 2431 135 1294 402 474 157 Core 4 | 4 . . . . . . . . . . . Treads 3780 | 48 1001 706 468 657 900 . . . . . . Legs . | . . . . . . . . . . . . Wheels . | . . . . . . . . . . . . Hover 4893 | . . . . . . 2431 135 1294 402 474 157 Flight . | . . . . . . . . . . . . Fastest Speed 43 | 50 160 160 160 160 160 45 45 43 43 43 43 Average Speed 99 | 151 160 160 160 160 193 49 45 44 43 43 49 Slowest Speed 245 | 160 160 240 240 160 245 236 45 45 43 43 110 Overloaded Moves . | . . . . . . . . . . . . Propulsion Burnouts . | . . . . . . . . . . . . Robots Hopped . | . . . . . . . . . . . . Cave-ins Triggered . | . . . . . . . . . . . . Exploration Rate (%) 63 | 6 97 99 41 99 72 52 90 33 52 46 77 Regions Visited 11 Branch Regions 5 Pre-discovered Areas 4 | . . 2 . 1 . . . . . . 1 Known Exits Taken 3 | . . . . . . . . 1 1 1 . Unknown Exits Taken 6 | 1 1 1 1 1 1 . . . . . . Scrap Searched 10 | . . 1 . 2 . . . . 6 1 . Spaces Dug 74 | . . . . . . 47 . 18 . 9 . Terrain Destroyed 100 | . . . . . 8 49 . 34 . 9 . Melee 74 | . . . . . . 47 . 18 . 9 . Projectile . | . . . . . . . . . . . . AOE 26 | . . . . . 8 2 . 16 . . . Terrain Rammed . | . . . . . . . . . . . . Walls Destroyed . | . . . . . . . . . . . . Machines Disabled . | . . . . . . . . . . . . Actions | -11 -10 -10 -9 -9 -8 -7 -7 -7 -7 -7 -7 --------- Run | Scr Mat Min Mat Min Mat Fac Was Fac Low Low Dat Total 9950 | 63 1139 744 643 701 1119 2788 144 1488 415 530 176 Wait 536 | . 23 6 71 18 63 168 2 131 4 44 6 Move 8667 | 51 1000 705 467 656 899 2431 134 1293 401 473 157 Hop . | . . . . . . . . . . . . Pick Up 89 | 6 18 4 14 2 13 17 2 8 3 . 2 Fast Attach 50 | 6 3 4 4 . 7 13 2 7 1 2 1 Attach 39 | . . 1 5 . 8 21 . 2 1 . 1 Detach 7 | . . . 1 . . 5 . 1 . . . Swap 41 | . 2 . 7 2 10 12 . 6 . . 2 Drop 111 | . 13 6 12 4 19 31 4 14 4 2 2 Fire 269 | . 75 14 58 15 99 4 . 4 . . . Melee 119 | . . . . . . 86 . 22 1 9 1 Ram . | . . . . . . . . . . . . Kick . | . . . . . . . . . . . . Crush 18 | . 5 4 4 4 1 . . . . . . Escape Stasis . | . . . . . . . . . . . . Rewire . | . . . . . . . . . . . . Trap 4 | . . . . . . . . . . . 4 Miscellaneous . | . . . . . . . . . . . . Route ------- -11/Scrapyard -10/Materials (discovered 4 exits: *Mat x3 / *Min) -10/Mines (discovered 3 exits: *Mat x2 / [*Exi]) -9/Materials (discovered 3 exits: *Mat / [*Min x2]) -9/Mines (discovered 2 exits: *Mat x2) -8/Materials (discovered 2 exits: *Fac x2) -7/Factory (discovered 2 exits: *Low x2) -7/Waste -7/Factory (discovered 4 exits: Sto x2 / *Low x2) -7/Lower Caves -7/Lower Caves (discovered 2 exits: [*Fac] / *Dat) -7/Data Miner (discovered 1 exit: [*Pro]) History --------- Turn | Location | Event 2 | -11/Scrapyard | Met Revision 17 39 | -11/Scrapyard | Discovered new exit (range 16) 94 | -11/Scrapyard | Entered Materials 307 | -10/Materials | Build established: Mutant 344 | -10/Materials | Discovered new exit (range 15) 683 | -10/Materials | Discovered new exit (range 14) 810 | -10/Materials | Discovered new exit (range 10) 1072 | -10/Materials | Discovered new exit (range 16) 1964 | -10/Materials | Entered Mines 1973 | -10/Mines | Met a Derelict bent on vengeance 2033 | -10/Mines | Learned Materials terminal intel 2038 | -10/Mines | Deemed a non-threat by the Exiles lab entrance 2040 | -10/Mines | Discovered new exit (range 5) 2193 | -10/Mines | Learned location of Zion (-6) 2221 | -10/Mines | Met a Derelict shopkeep closing up shop 2337 | -10/Mines | Discovered new exit (range 10) 2510 | -10/Mines | Discovered new exit (range 11) 2828 | -10/Mines | Learned location of Storage (-7) 2917 | -10/Mines | Build established: Scavenger-Mutant 3160 | -10/Mines | Entered Materials 3160 | -9/Materials | Accompanied by 2 allies 3160 | -9/Materials | Evolved 2 slots: Propulsion x1, Utility x1 3161 | -9/Materials | Loaded intel: 12 terminal locations 3162 | -9/Materials | Discovered new exit (range 14) 3165 | -9/Materials | Led the pair of lost Derelicts to an unsafe place 3415 | -9/Materials | Discovered new exit (range 15) 3937 | -9/Materials | Repaired Hvy. Assault Rifle 4165 | -9/Materials | Discovered new exit (range 15) 4202 | -9/Materials | Entered Mines 4246 | -9/Mines | Received a Rocket Launcher from a helpful Derelict 4517 | -9/Mines | Assisted by bots powering up and referring to "LRC-V3" 4653 | -9/Mines | Discovered new exit (range 4) 4992 | -9/Mines | Discovered new exit (range 6) 5326 | -9/Mines | Entered Materials 5326 | -8/Materials | Accompanied by 3 allies 5326 | -8/Materials | Evolved 2 slots: Utility x2 5407 | -8/Materials | Garrison activated, responded to threat 5863 | -8/Materials | Build established: Mutant 6413 | -8/Materials | Discovered new exit (range 16) 7110 | -8/Materials | Garrison activated, responded to threat 7378 | -8/Materials | Discovered new exit (range 16) 7453 | -8/Materials | Entered Factory 7453 | -7/Factory | Evolved 2 slots: Propulsion x1, Utility x1 7546 | -7/Factory | Fabricated Adv. Transmission Jammer? 7729 | -7/Factory | Repaired Rocket Launcher 7832 | -7/Factory | Build established: Hacker-Mutant 7927 | -7/Factory | Discovered new exit (range 15) 8625 | -7/Factory | Build established: Scavenger-Mutant 8985 | -7/Factory | Discovered new exit (range 10) 9014 | -7/Factory | Identified exit to Lower Caves 9136 | -7/Factory | Repaired Imp. Airjet 9171 | -7/Factory | Manually triggered Chute Trap 9171 | -7/Factory | Sucked down chute 9171 | -7/Factory | Entered Waste 9186 | -7/Waste | EMP discharged 9186 | -7/Waste | System corruption reached 10% 9199 | -7/Waste | Spotted C-40 Crusher 9200 | -7/Waste | Spotted C-40 Crusher 9200 | -7/Waste | Spotted C-40 Crusher 9204 | -7/Waste | Spotted C-40 Crusher 9204 | -7/Waste | Spotted C-40 Crusher 9220 | -7/Waste | Spotted C-40 Crusher 9227 | -7/Waste | Discovered new exit (range 14) 9240 | -7/Waste | Identified exit to Factory 9241 | -7/Waste | Entered Factory 9646 | -7/Factory | Repaired Corrupted Imp. System Shield 9649 | -7/Factory | Build established: Hacker-Mutant 9802 | -7/Factory | Fabricated Aerolev Unit (x1) 9819 | -7/Factory | Identified exit to Storage 10055 | -7/Factory | Entered Lower Caves 10107 | -7/Lower Caves | Learned Factory emergency access door positions 10238 | -7/Lower Caves | Discovered new exit (range 11) 10242 | -7/Lower Caves | Identified exit to Lower Caves 10242 | -7/Lower Caves | Entered another Lower Caves area 10427 | -7/Lower Caves | Discovered new exit (range 14) 10518 | -7/Lower Caves | Discovered new exit (range 6) 10520 | -7/Lower Caves | Identified exit to Data Miner 10521 | -7/Lower Caves | Entered Data Miner 10521 | -7/Data Miner | Discovered new exit (range 6) 10531 | -7/Data Miner | Met Data Miner 10539 | -7/Data Miner | Learned location of Section 7 (-3) 10539 | -7/Data Miner | Acquired the access code to Warlord's prototype stash 10547 | -7/Data Miner | Received God Mode back door access code from Data Miner 10587 | -7/Data Miner | Destroyed Data Miner 10590 | -7/Data Miner | Found Prototype Hackware 10592 | -7/Data Miner | Data Conduit disabled 10593 | -7/Data Miner | Found Prototype Hackware 10610 | -7/Data Miner | Core integrity fell below 50% 10617 | -7/Data Miner | Core integrity fell below 20% 10620 | -7/Data Miner | Destroyed by Enhanced Grunt with Neutron Cannon Last Messages --------------- 10571_ Trap Extractor dropped Dirty Bomb Trap. 10573_ Installed Dirty Bomb Trap. 10581_ Dropped Trap Extractor. 10583_ System corrupted: Matter fused (-5). 10587_ Sneak attack on Data Miner. 10587_ Destroyed Lgt. Angular Momentum Engine. 10587_ Data Miner destroyed. 10590_ Acquired Prototype Hackware. 10591_ Discarded Core Analyzer. 10592_ Data Conduit disabled. 10593_ Acquired Prototype Hackware. 10599_ System corrupted: Heat flow error (+139). 10599_ Gravmag System destroyed. 10599_ Hacking Suite destroyed. 10599_ Gravmag System destroyed. 10600_ Greatsword destroyed. 10606_ Lgt. Nuclear Core destroyed. 10609_ Acquired Gravmag Array. 10609_ Imp. Airjet destroyed. 10614_ Aerolev Unit destroyed. Map ----- +----------------------------------------------------+ | | | | | | | | | | | | | | | | | | | | | | | | | | | | | | | | | | | | | ???????????????????????????????????????????????? | | ???????????????????????????????????????????????? | | ???????????????????????????????????????????????? | | ???????????????????????????????????????????????? | | ?????????????????????????????????????####??????? | | ??????###############???###;##;###?### #??????? | | ?????"""""""""""""""####; ; ; ### #??????? | | ?????"""""""" """ @ ## < ##??????? | | ????"""""""" g g ######?? | | ????"""""" g #?? | | ????""""" !g #?? | | ????"""""% #?? | | ????"""""" ##?? | | ????"""""" """""""#####??? | | ????"""""" """"###############??????? | | ?????"""""" """""###????????????????????? | | ?????"""""""" "#####??????????????????????? | | ??????######"## "#??????????????????????????? | | ???????????#"### "#??????????????????????????? | | ???????????#"### "#??????????????????????????? | | ???????????#"## "#??????????????????????????? | | ???????????#"## "#??????????????????????????? | | ?????????????# "#??????????????????????????? | | ?????????????### "#??????????????????????????? | | ???????????????# "##?????????????????????????? | | ??????????????## ""#?????????????????????????? | | ?????????????## ""#?????????????????????????? | | ??????????##"#"X ""#?????????????????????????? | | ??????????""""" "####??????????????????????? | | ??????????""""" X"""""??????????????????????? | | ??????????##"#"X "##"#??????????????????????? | | ???????????#?## X""""#??????????????????????? | +----------------------------------------------------+ Best States ------------- Heat Dissipation 34 Energy Generation 15 Energy Capacity 280 Matter Stores 500 Matter Capacity 500 Sight Range 18 Robot Scan Range 15 Terrain Scan Density 10 ECM Strength 2 Additional Mass Support 9 Armor Coverage 750 Utility Shielding 66 Weapon Shielding 33 Evasion (%) 56 Targeting Accuracy 5 Core Analysis 6 Recoil Reduction 3 Offensive Hacking 30 Authchip Count 10 Trap Extractor Capacity 4 Item Schematics ----------------- Hcp. Storage Unit | -10/Materials | Hacked Aerolev Unit | -8/Materials | Scanalyzed Adv. Transmission Jammer | -7/Factory | Scanalyzed Core Analyzer | -7/Factory | Hacked Imp. System Shield | -7/Factory | Hacked Imp. Utility Shielding | -7/Factory | Hacked Exp. Cooling System | -7/Factory | Scanalyzed Combat Drone Bay | -7/Data Miner | Free Lgt. Regenerative Plating | -7/Data Miner | Free Biomechanical Wings | -7/Data Miner | Free Gravity Neutralizer | -7/Data Miner | Free Shock Maul | -7/Data Miner | Free Cmb. Gravmag System | -7/Data Miner | Free Imp. Component Analysis Suite | -7/Data Miner | Free Hvy. Phase Cannon | -7/Data Miner | Free Impulse Thruster | -7/Data Miner | Free Neutrino Core | -7/Data Miner | Free Robot Schematics ------------------ X-67 Chaingunner | -7/Data Miner | Free M-22 Extractor | -7/Data Miner | Free L-41 Fighter | -7/Data Miner | Free H-66 Slayer | -7/Data Miner | Free G-50 Soldier | -7/Data Miner | Free Fabricated ------------ Adv. Transmission Jammer | x1 | -7/Factory | Preloaded Aerolev Unit | x1 | -7/Factory | Authchip Alien Tech Used ----------------- None Achievements -------------- None Challenges ------------ None Game ------ Seed ShockPointyShield Manual? 0 Play Time 01:14:17 Cumulative 368.8 hours Start 2022.04.29 @ 09:41:51 End 2022.04.29 @ 10:57:02 Sessions 1 Manual Loads 0 Difficulty Rogue Special Mode None Game No. 375 Rogue 375 Adventurer 0 Explorer 0 Win Type - Total 20 Types 12/2/3/2/0/0/0/1/0 Lore% 91 Gallery% 88 Achievement% 75 Wizard Run 0 Options --------- ASCII 0 Keyboard 0 Movement Arrows Keybinds 0 Fullscreen 1 Font 18/Smallcaps Map View 76x50 Tactical HUD 1 Map Filters NONE Filters NONE Steam 1 RUN: b12cd939-5930-40d4-b8ab-bc18cc0d5f7f